Workbook

Sheet Registro
A1: TITULO | B1: ESTUDIO DE IMPACTO AMBIENTAL: PROCEDIMIENTO Y HERRAMIENTAS
A3: AUTORES | B3: ROBERTO PECHE GONZALEZ
B4: DOLORES ENCINAS MALAGON
B5: ZURIÑE GOMEZ DE BALUGERA LOPEZ DE ALDA
B6: MARIA ARRITOKIETA ORTUZAR IRAGORRI
A8: ISBN: | B8: 978-84-613-9696-2

Sheet 79-80
A1: nº de indicador: | B1: 79 | C1: función de transformación: | D1: CA=-1E-4I^2+1 | E1: I<100
A2: Indicador: | B2: % de pérdidas de agua en la cuenca hirológica
A3: fórmula del indicador
A4: unidad del indicador:
A5: rango de valores del indicador: | B5: 0 - 100 | C5: valor del indicador | D5: 50
A6: Tipo de indicador | B6: 2 (T=0,25) | C6: calidad ambiental | D6: =IF(D5<0,"valor del fuera de rango",IF(D5<=100,-0.0001*(D5^2)+1,"valor del indicador fuera rango")) -> 0.750
A7: valor del indicador | B7: calidad ambiental | C7: representación de la función de transformación
A8: 0 | B8: =(-0.0001)*A8^2+1 -> 1.000
A9: 5 | B9: =(-0.0001)*A9^2+1 -> 0.998
A10: 10 | B10: 0.990
A11: 15 | B11: 0.978
A12: 20 | B12: 0.960
A13: 25 | B13: 0.938
A14: 30 | B14: 0.910
A15: 35 | B15: 0.878
A16: 40 | B16: 0.840
A17: 45 | B17: 0.798
A18: 50 | B18: 0.750
A19: 55 | B19: 0.698
A20: 60 | B20: 0.640
A21: 65 | B21: 0.578
A22: 70 | B22: 0.510
A23: 75 | B23: 0.438
A24: 80 | B24: 0.360
A25: 85 | B25: 0.278
A26: 90 | B26: 0.190
A27: 100 | B27: 0.000
A30: nº de indicador: | B30: 79 | C30: función de transformación: | D30: CA=-1E-4I^2+1 | E30: I<100
A31: Indicador: | B31: % de pérdidas con respecto a la cantidad de recurso disponible
A32: fórmula del indicador
A33: unidad del indicador:
A34: rango de valores del indicador: | B34: 0 - 100 | C34: valor del indicador | D34: 50
A35: Tipo de indicador | B35: 2 (T=0,25) | C35: calidad ambiental | D35: =IF(D34<0,"valor del fuera de rango",IF(D34<=100,-0.0001*(D34^2)+1,"valor del indicador fuera rango")) -> 0.750
A36: valor del indicador | B36: calidad ambiental | C36: representación de la función de transformación
A37: 0 | B37: =(-0.0001)*A37^2+1 -> 1.000
A38: 5 | B38: =(-0.0001)*A38^2+1 -> 0.998
A39: 10 | B39: 0.990
A40: 15 | B40: 0.978
A41: 20 | B41: 0.960
A42: 25 | B42: 0.938
A43: 30 | B43: 0.910
A44: 35 | B44: 0.878
A45: 40 | B45: 0.840
A46: 45 | B46: 0.798
A47: 50 | B47: 0.750
A48: 55 | B48: 0.698
A49: 60 | B49: 0.640
A50: 65 | B50: 0.578
A51: 70 | B51: 0.510
A52: 75 | B52: 0.438
A53: 80 | B53: 0.360
A54: 85 | B54: 0.278
A55: 90 | B55: 0.190
A56: 100 | B56: 0.000

Sheet 81
A1: nº de indicador: | B1: 81 | C1: función de transformación: | D1: CA=1 | E1: 0<I<50
A2: Indicador: | B2: % de aumento de la superficie inundable (para un periodo de retorno de 100 años) al modificar la sección del caudal mediante la colocacion de barreras en él. | D2: CA=-4E-4I^2+4E-2I | E2: 50<I<100
A3: fórmula del indicador | B3: En el recuadro verde
A4: unidad del indicador:
A5: rango de valores del indicador: | B5: 0 - 100 | C5: valor del indicador | D5: 50
A6: Tipo de indicador | B6: 2 (T=0,25) | C6: calidad ambiental | D6: =IF(D5<0,"valor del indicador fuera de rango",IF(D5<=50,1,IF(D5<=100,(-0.0004*(D5^2))+(0.04*D5),"valor del indicador fuera de rango"))) -> 1.000
A7: valor del indicador | B7: calidad ambiental | C7: representación de la función de transformación
A8: 0 | B8: =1 -> 1.000
A9: 5 | B9: =1 -> 1.000
A10: 10 | B10: =1 -> 1.000
A11: 15 | B11: =1 -> 1.000
A12: 20 | B12: =1 -> 1.000
A13: 25 | B13: =1 -> 1.000
A14: 30 | B14: =1 -> 1.000
A15: 35 | B15: =1 -> 1.000
A16: 40 | B16: =1 -> 1.000
A17: 45 | B17: =1 -> 1.000
A18: 50 | B18: =1 -> 1.000
A19: =+A18+3 -> 53 | B19: =(-0.0004)*A19^2+(0.04)*A19 -> 0.996
A20: =+A19+3 -> 56 | B20: =(-0.0004)*A20^2+(0.04)*A20 -> 0.986
A21: 59 | B21: 0.968
A22: 62 | B22: 0.942
A23: 65 | B23: 0.910
A24: 68 | B24: 0.870
A25: 71 | B25: 0.824
A26: 74 | B26: 0.770
A27: 77 | B27: 0.708
A28: =+A27+3 -> 80 | B28: 0.640
A29: 83 | B29: 0.564
A30: 86 | B30: 0.482
A31: 89 | B31: 0.392
A32: 90 | B32: 0.360
A33: =+A31+3 -> 92 | B33: 0.294
A34: 95 | B34: 0.190
A35: =+A34+3 -> 98 | B35: 0.078
A36: 100 | B36: 0.000

Sheet 82-125
A1: nº de indicador: | B1: 82 | C1: función de transformación: | D1: CA=0 | E1: 0<I<50
A2: Indicador: | B2: Índice de calidad general (ICG). | D2: CA=-1,25E-04*I^2+3,88E-02*I-1,63 | E2: 50<I<100
A3: fórmula del indicador | B3: ICG = å Qi x Pi / å Pi
A4: unidad del indicador:
A5: rango de valores del indicador: | B5: 0 - 100 | C5: valor del indicador | D5: 70
A6: Tipo de indicador | B6: 1 (T=0) | C6: calidad ambiental | D6: =IF(D5<0,"valor del indicador fuera de rango",IF(D5<=50,0,IF(D5<=100,(-0.000125*D5^2+0.0388*D5-1.63),"valor del indicador fuera rango"))) -> 0.474
A7: valor del indicador | B7: calidad ambiental | C7: representación de la función de transformación
A8: 0 | B8: =0 -> 0.000
A9: =A8+5 -> 5 | B9: =0 -> 0.000
A10: 10 | B10: =0 -> 0.000
A11: 15 | B11: =0 -> 0.000
A12: 20 | B12: =0 -> 0.000
A13: 25 | B13: =0 -> 0.000
A14: 30 | B14: =0 -> 0.000
A15: 35 | B15: =0 -> 0.000
A16: 40 | B16: =0 -> 0.000
A17: 45 | B17: =0 -> 0.000
A18: 50 | B18: =0 -> 0.000
A19: 55 | B19: =(-0.000125*A19^2)+(0.0388*A19)-1.63 -> 0.126
A20: 60 | B20: 0.248
A21: 65 | B21: 0.364
A22: 70 | B22: 0.474
A23: 75 | B23: 0.577
A24: 80 | B24: 0.674
A25: 85 | B25: 0.765
A26: 90 | B26: 0.850
A27: 95 | B27: 0.928
A28: 100 | B28: 1.000
A50: nº de indicador: | B50: 83 | C50: función de transformación: | D50: CA=-3E-02*I^2-6E-02*I+1 | E50: 0<I<2
A51: Indicador: | B51: Demanda biológica de oxígeno (DBO)5 | D51: CA=-1,9E-01*I+1,140 | E51: 2<I<6
A52: fórmula del indicador
A53: unidad del indicador: | B53: mg l-1 de O2
A54: rango de valores del indicador: | B54: 0 - 6 | C54: valor del indicador | D54: 3
A55: Tipo de indicador | B55: 2 (T=0,25) | C55: calidad ambiental | D55: =IF(D54<0,"valor del indicador fuera de rango",IF(D54<=2,(-0.03*D54^2-0.06*D54+1),IF(D54<=6,(-0.19*D54+1.14),"valor del indicador fuera rango"))) -> 0.570
A56: valor del indicador | B56: calidad ambiental | C56: representación de la función de transformación
A57: 0.0 | B57: =-0.03*A57^2-0.06*A57+1 -> 1.000
A58: =+A57+0.3 -> 0.3 | B58: 0.979
A59: 0.6 | B59: 0.953
A60: 0.9 | B60: 0.922
A61: 1.2 | B61: 0.885
A62: 1.5 | B62: 0.843
A63: 1.8 | B63: 0.795
A64: 2.0 | B64: =-0.19*A64+1.14 -> 0.760
A65: 2.5 | B65: 0.665
A66: 3.0 | B66: 0.570
A67: =+A66+0.2 -> 3.2 | B67: 0.532
A68: 3.4 | B68: 0.494
A69: 3.6 | B69: 0.456
A70: 3.8 | B70: 0.418
A71: 4.0 | B71: 0.380
A72: 4.2 | B72: 0.342
A73: 4.4 | B73: 0.304
A74: 4.6 | B74: 0.266
A75: 4.8 | B75: 0.228
A76: 5.0 | B76: 0.190
A77: 5.2 | B77: 0.152
A78: =+A77+0.2 -> 5.4 | B78: 0.114
A79: 5.6 | B79: 0.076
A80: 6.0 | B80: 0.000
A83: nº de indicador: | B83: 84 | C83: función de transformación: | D83: CA=-2,13E-04*I^2-9,33E-02*I+1 | E83: 0<I<5
A84: Indicador: | B84: Oxidabilidad al MnO4K
A85: fórmula del indicador
A86: unidad del indicador: | B86: mg l-1 de O2
A87: rango de valores del indicador: | B87: 0 - 5 | C87: valor del indicador | D87: 1
A88: Tipo de indicador | B88: 2 (T=0,25) | C88: calidad ambiental | D88: =IF(D87<0,"valor del indicador fuera de rango",IF(D87<=5,(-0.0213*D87^2-0.0933*D87+1),"valor del indicador fuera rango")) -> 0.885
A89: valor del indicador | B89: calidad ambiental | C89: representación de la función de transformación
A90: 0.0 | B90: =(-0.0213*A90^2)-(0.0933*A90)+1 -> 1.000
A91: =+A90+0.25 -> 0.3 | B91: =(-0.0213*A91^2)-(0.0933*A91)+1 -> 0.975
A92: =+A91+0.25 -> 0.5 | B92: 0.948
A93: 0.8 | B93: 0.918
A94: 1.0 | B94: 0.885
A95: 1.3 | B95: 0.850
A96: 1.5 | B96: 0.812
A97: 1.8 | B97: 0.771
A98: 2.0 | B98: 0.728
A99: 2.3 | B99: 0.682
A100: 2.5 | B100: 0.634
A101: 2.8 | B101: 0.582
A102: 3.0 | B102: 0.528
A103: 3.3 | B103: 0.472
A104: 3.5 | B104: 0.413
A105: 3.8 | B105: 0.351
A106: 4.0 | B106: 0.286
A107: 4.2 | B107: 0.232
A108: 4.4 | B108: 0.177
A109: 4.6 | B109: 0.120
A110: 4.7 | B110: 0.091
A111: 4.8 | B111: 0.061
A112: 5.0 | B112: 0.001
A115: nº de indicador: | B115: 85 | C115: función de transformación: | D115: CA=-0,0139*I+1 | E115: 0<I<36
A116: Indicador: | B116: Índice de caracterización de tratamientos (ICT) | D116: CA=(-0,00526*I)+0,689 | E116: 36<I<131
A117: fórmula del indicador | D117: CA=0 | E117: 131<I<140
A118: unidad del indicador:
A119: rango de valores del indicador: | B119: 0 - 140 | C119: valor del indicador | D119: 40
A120: Tipo de indicador | B120: 1 (T=0) | C120: calidad ambiental | D120: =IF(D119<0,"valor del indicador fuera de rango",IF(D119<=36,-0.0139*D119+1,IF(D119<=131,(-0.00526*D119)+0.689,IF(D119<=140,0,"valor del indicador fuera rango")))) -> 0.479
A121: valor del indicador | B121: calidad ambiental | C121: representación de la función de transformación
A122: 0 | B122: =-0.0139*A122+1 -> 1.000
A123: =A122+5 -> 5 | B123: =-0.0139*A123+1 -> 0.931
A124: 10 | B124: 0.861
A125: 15 | B125: 0.792
A126: 20 | B126: 0.722
A127: 25 | B127: 0.653
A128: 30 | B128: 0.583
A129: 35 | B129: 0.514
A130: 40 | B130: =-0.00526*A130+0.689 -> 0.479
A131: 45 | B131: =-0.00526*A131+0.689 -> 0.452
A132: 50 | B132: 0.426
A133: 55 | B133: 0.400
A134: 60 | B134: 0.373
A135: 65 | B135: 0.347
A136: 70 | B136: 0.321
A137: 75 | B137: 0.295
A138: 80 | B138: 0.268
A139: 85 | B139: 0.242
A140: 90 | B140: 0.216
A141: 95 | B141: 0.189
A142: 100 | B142: 0.163
A143: 105 | B143: 0.137
A144: 110 | B144: 0.110
A145: 115 | B145: 0.084
A146: 120 | B146: 0.058
A147: 125 | B147: 0.032
A148: 130 | B148: 0.005
A149: 135 | B149: 0.000
A150: 140 | B150: 0.000
A163: nº de indicador: | B163: 86 | C163: función de transformación: | D163: CA=-2,13E-04*I^2-9,33E-02*I+1 | E163: 0,2<I<1
A164: Indicador: | B164: Calidad del agua superficial desde el punto de vista de la potabilidad (verano) | D164: CA=-3,33E-02*I^2-5E-02*I+1,08 | E164: 1<I<5
A165: fórmula del indicador
A166: unidad del indicador:
A167: rango de valores del indicador: | B167: 0.2 - 5 | C167: valor del indicador | D167: 2
A168: Tipo de indicador | B168: 1 (T=0) | C168: calidad ambiental | D168: =IF(D167<0.2,"valor del indicador fuera de rango",IF(D167<=1,(1.56*D167^2-0.625*D167+0.0625),IF(D167<=5,(-0.0333*D167^2-0.05*D167+1.08),"valor del indicador fuera rango"))) -> 0.847
A169: valor del indicador | B169: calidad ambiental | C169: representación de la función de transformación
A170: 0.2 | B170: =(1.56*(A170^2))-(0.625*A170)+0.0625 -> -0.000
A171: =+A170+0.1 -> 0.3 | B171: =(1.56*(A171^2))-(0.625*A171)+0.0625 -> 0.015
A172: =+A171+0.1 -> 0.4 | B172: 0.062
A173: 0.5 | B173: 0.140
A174: 0.6 | B174: 0.249
A175: 0.7 | B175: 0.389
A176: 0.8 | B176: 0.561
A177: 0.9 | B177: 0.764
A178: 0.95 | B178: 0.877
A179: 1 | B179: 0.998
A180: 1 | B180: =(-0.0333*(A180^2))-(0.05*A180)+1.08 -> 0.997
A181: =A180+0.2 -> 1.2 | B181: =(-0.0333*(A181^2))-(0.05*A181)+1.08 -> 0.972
A182: 1.4 | B182: =(-0.0333*(A182^2))-(0.05*A182)+1.08 -> 0.945
A183: 1.6 | B183: =(-0.0333*(A183^2))-(0.05*A183)+1.08 -> 0.915
A184: 1.8 | B184: =(-0.0333*(A184^2))-(0.05*A184)+1.08 -> 0.882
A185: 2 | B185: =(-0.0333*(A185^2))-(0.05*A185)+1.08 -> 0.847
A186: 2.2 | B186: 0.809
A187: 2.4 | B187: 0.768
A188: 2.6 | B188: 0.725
A189: 2.8 | B189: 0.679
A190: 3 | B190: 0.630
A191: 3.2 | B191: 0.579
A192: 3.4 | B192: 0.525
A193: 3.6 | B193: 0.468
A194: 3.8 | B194: 0.409
A195: 4 | B195: 0.347
A196: 4.2 | B196: 0.283
A197: 4.4 | B197: 0.215
A198: 4.6 | B198: 0.145
A199: 5 | B199: 0.000
A202: nº de indicador: | B202: 87 | C202: función de transformación: | D202: CA=5,56*I^2-2,22*I+2,22E-01 | E202: 0,2<I<0,5
A203: Indicador: | B203: Calidad del agua superficial desde el punto de vista de la potabilidad (primavera-otoño) | D203: CA=-2*I^2+4I-1 | E203: 0,5<I<1
A204: fórmula del indicador | D204: CA=-3,333E-02*I^2-5E-02*I+1,08 | E204: 1<I<5
A205: unidad del indicador:
A206: rango de valores del indicador: | B206: 0.2 - 5 | C206: valor del indicador | D206: 1.4
A207: Tipo de indicador | B207: 1 (T=0) | C207: calidad ambiental | D207: =IF(D206<0.2,"valor del indicador fuera de rango",IF(D206<=0.5,(5.56*D206^2-2.22*D206+0.222),IF(D206<=1,(-2*D206^2+4*D206-1),IF(D206<=5,(-0.0333*D206^2-0.05*D206+1.08),"valor del indicador fuera rango")))) -> 0.945
A208: valor del indicador | B208: calidad ambiental | C208: representación de la función de transformación
A209: 0.2 | B209: =(5.56*(A209^2))-(2.22*A209)+0.222 -> 0.000
A210: =+A209+0.1 -> 0.3 | B210: =(5.56*(A210^2))-(2.22*A210)+0.222 -> 0.056
A211: =+A210+0.1 -> 0.4 | B211: =(5.56*(A211^2))-(2.22*A211)+0.222 -> 0.224
A212: 0.5 | B212: =(5.56*(A212^2))-(2.22*A212)+0.222 -> 0.502
A213: 0.6 | B213: =(-2*(A213^2))+(4*A213)-1 -> 0.680
A214: 0.7 | B214: =(-2*(A214^2))+(4*A214)-1 -> 0.820
A215: 0.8 | B215: =(-2*(A215^2))+(4*A215)-1 -> 0.920
A216: 0.9 | B216: =(-2*(A216^2))+(4*A216)-1 -> 0.980
A217: 1 | B217: =(-2*(A217^2))+(4*A217)-1 -> 1.000
A218: =+A217+0.2 -> 1.2 | B218: =-0.0333*A218^2-0.05*A218+1.08 -> 0.972
A219: =+A218+0.2 -> 1.4 | B219: =-0.0333*A219^2-0.05*A219+1.08 -> 0.945
A220: 1.6 | B220: 0.915
A221: 1.8 | B221: 0.882
A222: 2 | B222: 0.847
A223: 2.2 | B223: 0.809
A224: 2.4 | B224: 0.768
A225: 2.6 | B225: 0.725
A226: 2.8 | B226: 0.679
A227: 3 | B227: 0.630
A228: 3.2 | B228: 0.579
A229: 3.4 | B229: 0.525
A230: 3.6 | B230: 0.468
A231: 3.8 | B231: 0.409
A232: 4 | B232: 0.347
A233: 4.2 | B233: 0.283
A234: 4.4 | B234: 0.215
A235: 4.6 | B235: 0.145
A236: 4.8 | B236: 0.073
A237: 4.9 | B237: 0.035
A238: 5 | B238: 0.000
A241: nº de indicador: | B241: 88 | C241: función de transformación: | D241: CA=(-1,56*I^2)+(3,127*I)-0,563 | E241: 0,2<I<1
... 1078 more rows

Sheet 126-127
A1: nº de indicador: | B1: 126 | C1: función de transformación: | D1: CA=1,22E-02I2+2,931E-01I+1,760 | E1: -12<I<-5
A2: Indicador: | B2: Tenperatura media del agua | D2: CA=-2,32E-02I2-4E-02I+9,8E-01 | E2: -5<I<5
A3: fórmula del indicador | B3: tª media-tªmedia "sin" proyecto | D3: CA=8E-03I2-1,6E-01I+8E-01 | E3: 5<I<10
A4: unidad del indicador: | B4: ºC
A5: rango de valores del indicador: | B5: -12 - 10 | C5: valor del indicador | D5: 6
A6: Tipo de indicador | B6: 2 (T=0,25) | C6: calidad ambiental | D6: =IF(D5<-12,"valor del indicador fuera de rango",IF(D5<=-5,0.0122*(D5^2)+(0.2931*D5)+1.76,IF(D5<=5,-0.0232*(D5^2)-(0.04*D5)+0.98,IF(D5<=10,0.008*(D5^2)-(0.16*D5)+(0.8),"valor del indicador fuera rango")))) -> 0.128
A7: valor del indicador | B7: calidad ambiental | C7: representación de la función de transformación
A8: -12 | B8: =0.0122*(A8^2)+0.2931*A8+1.76 -> -0.000
A9: -11 | B9: =0.0122*(A9^2)+0.2931*A9+1.76 -> 0.012
A10: -10 | B10: 0.049
A11: -9 | B11: 0.110
A12: -8 | B12: 0.196
A13: -7 | B13: 0.306
A14: -6 | B14: 0.441
A15: -5 | B15: 0.600
A16: -5 | B16: =-0.0232*A16^2-0.04*A16+0.98 -> 0.600
A17: =+A16+1 -> -4 | B17: 0.769
A18: -3 | B18: 0.891
A19: -2 | B19: 0.967
A20: -1 | B20: 0.997
A21: 0 | B21: 0.980
A22: 1 | B22: 0.917
A23: 2 | B23: 0.807
A24: 3 | B24: 0.651
A25: 5 | B25: 0.200
A26: 5 | B26: =0.008*A26^2-0.16*A26+0.8 -> 0.200
A27: 6 | B27: 0.128
A28: 7 | B28: 0.072
A29: 8 | B29: 0.032
A30: 9 | B30: 0.008
A31: 10 | B31: 0.000
A34: nº de indicador: | B34: 127 | C34: función de transformación: | D34: CA=1,22E-02 I2+2,931E-01I+1,760 | E34: -12<I<-5
A35: Indicador: | B35: Tenperatura media del agua según NSF | D35: CA=-1,51E-02I2-2,07E-02I+8,75E-01 | E35: -5<I<4
A36: fórmula del indicador | B36: tª media-tªmedia "sin" proyecto | D36: CA=3,33E-03I2-1,13E-01I+9,5E-01 | E36: 4<I<15
A37: unidad del indicador: | B37: ºC
A38: rango de valores del indicador: | B38: -12 - 15 | C38: valor del indicador | D38: -4
A39: Tipo de indicador | B39: 2 (T=0,25) | C39: calidad ambiental | D39: =IF(D38<-12,"valor del indicador fuera de rango",IF(D38<=-5,0.0122*(D38^2)+(0.2931*D38)+1.76,IF(D38<=4,(-0.0151*(D38^2))-(0.0207*D38)+0.875,IF(D38<15,0.00333*(D38^2)-(0.113*D38)+0.95,"valor del indicador fuera de rango")))) -> 0.716
A40: valor del indicador | B40: calidad ambiental | C40: representación de la función de transformación
A41: -12 | B41: =0.0122*(A41^2)+0.2931*A41+1.76 -> -0.000
A42: -10 | B42: =0.0122*(A42^2)+0.2931*A42+1.76 -> 0.049
A43: -8 | B43: =0.0122*(A43^2)+0.2931*A43+1.76 -> 0.196
A44: -6 | B44: =0.0122*(A44^2)+0.2931*A44+1.76 -> 0.441
A45: -5 | B45: =0.0122*(A45^2)+0.2931*A45+1.76 -> 0.600
A46: -5 | B46: =-0.0151*A46^2-0.0207*A46+0.875 -> 0.601
A47: =+A46+1 -> -4 | B47: 0.716
A48: =+A47+1 -> -3 | B48: 0.801
A49: -2 | B49: 0.856
A50: -1 | B50: 0.881
A51: 0 | B51: 0.875
A52: 1 | B52: 0.839
A53: 2 | B53: 0.773
A54: 3 | B54: 0.677
A55: 4 | B55: 0.551
A56: 4 | B56: =0.00333*A56^2-0.113*A56+0.95 -> 0.551
A57: 5 | B57: 0.468
A58: 6 | B58: 0.392
A59: 8 | B59: 0.259
A60: 10 | B60: 0.153
A61: 11 | B61: 0.110
A62: 12 | B62: 0.074
A63: 13 | B63: 0.044
A64: 14 | B64: 0.021
A65: 15 | B65: 0.004
